[Event "*** Titled Tuesday Blitz"]
[Site "Chess.com"]
[Date "2020.12.29"]
[Round "7"]
[White "Grandelicious"]
[Black "Arseniy_Nesterov"]
[Result "1-0"]
[WhiteElo "2880"]
[BlackElo "2790"]
[TimeControl "180+1"]
[EndTime "11:17:20 PST"]
[Termination "Grandelicious won by resignation"]

1. Nf3 {[%clk 0:03:00.9]} 1... d5 {[%clk 0:02:59.4]} 2. g3 {[%clk 0:03:01.1]}
2... Nf6 {[%clk 0:02:59.3]} 3. Bg2 {[%clk 0:03:01.6]} 3... Bf5 {[%clk
0:02:59.8]} 4. O-O {[%clk 0:03:00.7]} 4... e6 {[%clk 0:03:00.1]} 5. c4 {[%clk
0:03:01.3]} 5... c6 {[%clk 0:03:00.3]} 6. cxd5 {[%clk 0:03:00.1]} 6... cxd5
{[%clk 0:03:00.5]} 7. Qb3 {[%clk 0:02:59.3]} 7... Qb6 {[%clk 0:02:58.7]} 8. Qxb6
{[%clk 0:02:59.4]} 8... axb6 {[%clk 0:02:58.6]} 9. Nc3 {[%clk 0:02:59.6]} 9...
Nc6 {[%clk 0:02:58.1]} 10. d3 {[%clk 0:02:58.6]} 10... Bc5 {[%clk 0:02:56.1]}
11. a3 {[%clk 0:02:56.6]} 11... h6 {[%clk 0:02:53.1]} 12. Bd2 {[%clk 0:02:56.2]}
12... O-O {[%clk 0:02:51.9]} 13. Nb5 {[%clk 0:02:52.1]} 13... e5 {[%clk
0:02:36.8]} 14. b4 {[%clk 0:02:36.8]} 14... Be7 {[%clk 0:02:34.7]} 15. Rfc1
{[%clk 0:02:28]} 15... Rfc8 {[%clk 0:02:15.8]} 16. Bc3 {[%clk 0:02:10.1]} 16...
e4 {[%clk 0:02:01.9]} 17. dxe4 {[%clk 0:01:56.2]} 17... dxe4 {[%clk 0:01:50.5]}
18. Nfd4 {[%clk 0:01:55.5]} 18... Nxd4 {[%clk 0:01:42.6]} 19. Nxd4 {[%clk
0:01:20.9]} 19... Bg6 {[%clk 0:01:41.2]} 20. Bb2 {[%clk 0:01:19.9]} 20... Nd5
{[%clk 0:01:33.1]} 21. Bh3 {[%clk 0:01:09]} 21... Rd8 {[%clk 0:01:22.7]} 22. e3
{[%clk 0:00:51.5]} 22... Bf6 {[%clk 0:01:15.4]} 23. Rc2 {[%clk 0:00:51.8]} 23...
Bxd4 {[%clk 0:01:04.8]} 24. Bxd4 {[%clk 0:00:47.7]} 24... Nxb4 {[%clk
0:01:03.1]} 25. Rc7 {[%clk 0:00:30.3]} 25... b5 {[%clk 0:00:44.4]} 26. axb4
{[%clk 0:00:17.6]} 26... Rxa1+ {[%clk 0:00:43.6]} 27. Bxa1 {[%clk 0:00:18.5]}
27... Rd1+ {[%clk 0:00:43.8]} 28. Kg2 {[%clk 0:00:18.8]} 28... Rxa1 {[%clk
0:00:40.6]} 29. Rxb7 {[%clk 0:00:19.2]} 29... Bh5 {[%clk 0:00:18.6]} 30. Rb8+
{[%clk 0:00:19.1]} 30... Kh7 {[%clk 0:00:18.6]} 31. Bf5+ {[%clk 0:00:19.7]}
31... Bg6 {[%clk 0:00:18.2]} 32. Rxb5 {[%clk 0:00:16.8]} 32... Bxf5 {[%clk
0:00:10.4]} 33. Rxf5 {[%clk 0:00:17.7]} 33... Rb1 {[%clk 0:00:10]} 34. Rxf7
{[%clk 0:00:14.5]} 34... Rxb4 {[%clk 0:00:09.8]} 35. g4 {[%clk 0:00:15]} 35...
Kg6 {[%clk 0:00:09.8]} 36. Rd7 {[%clk 0:00:15.2]} 36... Rb5 {[%clk 0:00:05.5]}
37. Kg3 {[%clk 0:00:13.6]} 37... Kf6 {[%clk 0:00:04.9]} 38. Rd4 {[%clk
0:00:09.2]} 38... Re5 {[%clk 0:00:03.6]} 39. h4 {[%clk 0:00:08.2]} 39... g5
{[%clk 0:00:03.7]} 40. h5 {[%clk 0:00:08.8]} 40... Re6 {[%clk 0:00:03.5]} 41.
Rd7 {[%clk 0:00:08.8]} 41... Re5 {[%clk 0:00:03.4]} 42. Rh7 {[%clk 0:00:08.8]}
1-0

[Event "*** Titled Tuesday Blitz"]
[Site "Chess.com"]
[Date "2020.12.29"]
[Round "7"]
[White "Ariadna_Atreides"]
[Black "AlanZhang"]
[Result "1-0"]
[WhiteElo "2073"]
[BlackElo "2141"]
[TimeControl "180+1"]
[EndTime "11:17:20 PST"]
[Termination "Ariadna_Atreides won on time"]

1. d4 {[%clk 0:03:00.9]} 1... Nf6 {[%clk 0:02:59.5]} 2. Nf3 {[%clk 0:03:00.1]}
2... d5 {[%clk 0:02:58.4]} 3. Bf4 {[%clk 0:02:58.2]} 3... e6 {[%clk 0:02:52.4]}
4. e3 {[%clk 0:02:57.4]} 4... c5 {[%clk 0:02:51]} 5. c3 {[%clk 0:02:53.1]} 5...
Nc6 {[%clk 0:02:51.4]} 6. Bd3 {[%clk 0:02:51.1]} 6... Bd6 {[%clk 0:02:45.6]} 7.
Ne5 {[%clk 0:02:50.5]} 7... O-O {[%clk 0:02:43.2]} 8. Nd2 {[%clk 0:02:47.4]}
8... Qc7 {[%clk 0:02:42.2]} 9. Ndf3 {[%clk 0:02:41]} 9... c4 {[%clk 0:02:32.4]}
10. Bc2 {[%clk 0:02:35.5]} 10... b5 {[%clk 0:02:32.8]} 11. a3 {[%clk 0:02:27.6]}
11... Bb7 {[%clk 0:02:24]} 12. O-O {[%clk 0:02:09.7]} 12... a5 {[%clk
0:02:19.3]} 13. Qe2 {[%clk 0:01:55.6]} 13... Ne4 {[%clk 0:02:15.3]} 14. Nxc6
{[%clk 0:01:42.7]} 14... Bxf4 {[%clk 0:02:12.7]} 15. exf4 {[%clk 0:01:30.2]}
15... Bxc6 {[%clk 0:02:00.3]} 16. Ne5 {[%clk 0:01:28.7]} 16... Bb7 {[%clk
0:02:00.5]} 17. f3 {[%clk 0:01:18.9]} 17... Nd6 {[%clk 0:01:57.4]} 18. Qf2
{[%clk 0:01:07.4]} 18... f6 {[%clk 0:01:49.2]} 19. Ng4 {[%clk 0:01:06.4]} 19...
Nf5 {[%clk 0:01:26.2]} 20. Rae1 {[%clk 0:01:00]} 20... Rae8 {[%clk 0:01:07.3]}
21. g3 {[%clk 0:00:57.8]} 21... h5 {[%clk 0:00:50.6]} 22. Ne3 {[%clk 0:00:56.9]}
22... Ne7 {[%clk 0:00:34]} 23. Ng2 {[%clk 0:00:52]} 23... Kf7 {[%clk 0:00:32.4]}
24. Bb1 {[%clk 0:00:48.5]} 24... f5 {[%clk 0:00:19.4]} 25. Nh4 {[%clk
0:00:37.4]} 25... Nc6 {[%clk 0:00:18.5]} 26. g4 {[%clk 0:00:19.4]} 26... g6
{[%clk 0:00:12.9]} 27. Qe3 {[%clk 0:00:12.3]} 27... Qd8 {[%clk 0:00:08.1]} 28.
Ng2 {[%clk 0:00:11.8]} 28... hxg4 {[%clk 0:00:05.8]} 29. fxg4 {[%clk 0:00:11.2]}
29... fxg4 {[%clk 0:00:06.7]} 30. Qg3 {[%clk 0:00:08.2]} 30... Qf6 {[%clk
0:00:07.2]} 31. Qxg4 {[%clk 0:00:07.7]} 31... Ne7 {[%clk 0:00:07.7]} 32. Nh4
{[%clk 0:00:06.9]} 32... Nf5 {[%clk 0:00:08.1]} 33. Nf3 {[%clk 0:00:06.8]} 33...
Rh8 {[%clk 0:00:07.1]} 34. Ne5+ {[%clk 0:00:06.7]} 34... Kg7 {[%clk 0:00:07.4]}
35. Rf2 {[%clk 0:00:06.8]} 35... Rh6 {[%clk 0:00:07.2]} 36. Rg2 {[%clk
0:00:06.9]} 36... Reh8 {[%clk 0:00:06.8]} 37. Ree2 {[%clk 0:00:06.7]} 37... Nh4
{[%clk 0:00:03.7]} 38. Nd7 {[%clk 0:00:06.2]} 38... Qe7 {[%clk 0:00:03.4]} 39.
Rxe6 {[%clk 0:00:05.4]} 39... Qxd7 {[%clk 0:00:03.4]} 40. Rxg6+ {[%clk
0:00:05.4]} 40... Rxg6 {[%clk 0:00:01.4]} 41. Qxd7+ {[%clk 0:00:05.7]} 41... Kh6
{[%clk 0:00:01.6]} 42. Rxg6+ {[%clk 0:00:05.5]} 42... Nxg6 {[%clk 0:00:02.1]}
43. Qxb7 {[%clk 0:00:05.4]} 1-0

[Event "*** Titled Tuesday Blitz"]
[Site "Chess.com"]
[Date "2020.12.29"]
[Round "7"]
[White "NateSolon"]
[Black "northridgehawk"]
[Result "1-0"]
[WhiteElo "2502"]
[BlackElo "2327"]
[TimeControl "180+1"]
[EndTime "11:17:24 PST"]
[Termination "NateSolon won by resignation"]

1. d4 {[%clk 0:03:00.9]} 1... Nf6 {[%clk 0:02:59.1]} 2. c4 {[%clk 0:03:00.5]}
2... g6 {[%clk 0:02:59.3]} 3. Nc3 {[%clk 0:03:00.5]} 3... d5 {[%clk 0:02:59]} 4.
Bf4 {[%clk 0:02:58.8]} 4... Bg7 {[%clk 0:02:58.8]} 5. e3 {[%clk 0:02:59]} 5...
O-O {[%clk 0:02:58.2]} 6. Rc1 {[%clk 0:02:58.9]} 6... Be6 {[%clk 0:02:44.1]} 7.
c5 {[%clk 0:02:58.7]} 7... c6 {[%clk 0:02:36]} 8. Bd3 {[%clk 0:02:58.6]} 8...
Bc8 {[%clk 0:02:34]} 9. Bg3 {[%clk 0:02:52.2]} 9... b6 {[%clk 0:02:30.3]} 10.
Na4 {[%clk 0:02:46.4]} 10... Nfd7 {[%clk 0:02:28.8]} 11. a3 {[%clk 0:02:31]}
11... e5 {[%clk 0:02:28]} 12. dxe5 {[%clk 0:02:14.8]} 12... Nxe5 {[%clk
0:02:28.9]} 13. Ne2 {[%clk 0:02:13.5]} 13... Nxd3+ {[%clk 0:02:20.7]} 14. Qxd3
{[%clk 0:02:13.3]} 14... Nd7 {[%clk 0:02:17.7]} 15. Nd4 {[%clk 0:02:07.9]} 15...
Bb7 {[%clk 0:01:46.5]} 16. O-O {[%clk 0:02:05.1]} 16... Ne5 {[%clk 0:01:43.8]}
17. Qb3 {[%clk 0:01:56.5]} 17... b5 {[%clk 0:01:42.6]} 18. Rfd1 {[%clk 0:01:51]}
18... Qe7 {[%clk 0:01:35.5]} 19. Nc3 {[%clk 0:01:42.1]} 19... a5 {[%clk
0:01:34.6]} 20. Ncxb5 {[%clk 0:01:36.2]} 20... cxb5 {[%clk 0:01:34.2]} 21. c6
{[%clk 0:01:36.6]} 21... Ba6 {[%clk 0:01:26.8]} 22. Qxd5 {[%clk 0:01:36.2]}
22... Rad8 {[%clk 0:01:23.6]} 23. Qc5 {[%clk 0:01:35.9]} 23... Qxc5 {[%clk
0:01:15.6]} 24. Rxc5 {[%clk 0:01:36.8]} 24... Nc4 {[%clk 0:01:11]} 25. c7 {[%clk
0:01:35.5]} 25... Rd7 {[%clk 0:00:52.6]} 26. Rc1 {[%clk 0:01:18.5]} 26... Rc8
{[%clk 0:00:48.7]} 27. Nxb5 {[%clk 0:01:11.8]} 27... Nxb2 {[%clk 0:00:28.6]} 28.
Nd6 {[%clk 0:00:41.6]} 28... Nd3 {[%clk 0:00:19.1]} 29. Nxc8 {[%clk 0:00:41.5]}
29... Nxc5 {[%clk 0:00:19]} 30. Nb6 {[%clk 0:00:35.5]} 30... Rd2 {[%clk
0:00:14.4]} 31. h4 {[%clk 0:00:29.3]} 31... Bf8 {[%clk 0:00:13.6]} 32. c8=Q
{[%clk 0:00:20.5]} 32... Bxc8 {[%clk 0:00:13.6]} 33. Nxc8 {[%clk 0:00:20.6]}
33... Ne4 {[%clk 0:00:13.9]} 34. Bf4 {[%clk 0:00:16.3]} 34... Kg7 {[%clk
0:00:12.8]} 35. f3 {[%clk 0:00:12]} 35... Ng3 {[%clk 0:00:11.7]} 36. Bxg3 {[%clk
0:00:11.8]} 36... Rd3 {[%clk 0:00:10.9]} 37. Bf4 {[%clk 0:00:11.1]} 37... f6
{[%clk 0:00:11.3]} 38. Nb6 {[%clk 0:00:10.6]} 38... Rxa3 {[%clk 0:00:10.6]} 39.
Rc7+ {[%clk 0:00:08.4]} 39... Kg8 {[%clk 0:00:10.3]} 40. Nd7 {[%clk 0:00:08.7]}
40... Be7 {[%clk 0:00:09.1]} 41. Nb6 {[%clk 0:00:07.7]} 41... Kf7 {[%clk
0:00:09.2]} 42. Nd5 {[%clk 0:00:07.8]} 42... Ke6 {[%clk 0:00:08.8]} 43. Nxe7
{[%clk 0:00:07.7]} 43... Ra1+ {[%clk 0:00:09.1]} 44. Kh2 {[%clk 0:00:07.7]}
44... a4 {[%clk 0:00:09.6]} 45. Nc6 {[%clk 0:00:08.1]} 45... a3 {[%clk 0:00:10]}
46. Nd4+ {[%clk 0:00:08.7]} 46... Kd5 {[%clk 0:00:08.7]} 47. Ra7 {[%clk
0:00:09.6]} 47... a2 {[%clk 0:00:08.6]} 48. Kg3 {[%clk 0:00:08.5]} 48... h6
{[%clk 0:00:07.9]} 49. Nb3 {[%clk 0:00:08.8]} 49... g5 {[%clk 0:00:08.2]} 50.
Nxa1 {[%clk 0:00:07.9]} 1-0

[Event "*** Titled Tuesday Blitz"]
[Site "Chess.com"]
[Date "2020.12.29"]
[Round "7"]
[White "PavelChernomordik"]
[Black "pedromartinez91"]
[Result "1-0"]
[WhiteElo "2311"]
[BlackElo "2478"]
[TimeControl "180+1"]
[EndTime "11:17:24 PST"]
[Termination "PavelChernomordik won by checkmate"]

1. e4 {[%clk 0:03:00.9]} 1... c5 {[%clk 0:03:00.1]} 2. Nc3 {[%clk 0:03:00.2]}
2... Nc6 {[%clk 0:03:00.6]} 3. Bb5 {[%clk 0:02:58.9]} 3... g6 {[%clk 0:03:00.7]}
4. Bxc6 {[%clk 0:02:58.3]} 4... bxc6 {[%clk 0:03:01.2]} 5. f4 {[%clk 0:02:59.2]}
5... Bg7 {[%clk 0:03:01.4]} 6. Nf3 {[%clk 0:02:59.2]} 6... d6 {[%clk 0:03:02.1]}
7. O-O {[%clk 0:02:58.8]} 7... Nh6 {[%clk 0:03:02.8]} 8. h3 {[%clk 0:02:58]}
8... O-O {[%clk 0:03:03.4]} 9. d3 {[%clk 0:02:57.6]} 9... f5 {[%clk 0:03:03.7]}
10. Qe1 {[%clk 0:02:54.6]} 10... Nf7 {[%clk 0:03:03.6]} 11. Be3 {[%clk
0:02:42.5]} 11... Rb8 {[%clk 0:03:03]} 12. Rb1 {[%clk 0:02:39.5]} 12... Bd7
{[%clk 0:02:59.2]} 13. Qg3 {[%clk 0:02:28.8]} 13... e5 {[%clk 0:02:47.2]} 14.
exf5 {[%clk 0:02:16.8]} 14... Bxf5 {[%clk 0:02:46.8]} 15. Nh4 {[%clk 0:02:12.2]}
15... exf4 {[%clk 0:02:42.3]} 16. Bxf4 {[%clk 0:02:11.5]} 16... Be6 {[%clk
0:02:39]} 17. Rbe1 {[%clk 0:02:06.7]} 17... Qd7 {[%clk 0:02:30.6]} 18. Nd1
{[%clk 0:02:00.8]} 18... Ne5 {[%clk 0:02:30]} 19. Nf3 {[%clk 0:01:55.6]} 19...
Nxf3+ {[%clk 0:02:23.5]} 20. Rxf3 {[%clk 0:01:53.5]} 20... Bd5 {[%clk
0:02:23.9]} 21. Rff1 {[%clk 0:01:50.7]} 21... Rbd8 {[%clk 0:02:23.6]} 22. c3
{[%clk 0:01:35.4]} 22... Rfe8 {[%clk 0:02:23.6]} 23. Ne3 {[%clk 0:01:34.5]}
23... Bxa2 {[%clk 0:02:20.6]} 24. Ng4 {[%clk 0:01:33.9]} 24... Rxe1 {[%clk
0:02:20]} 25. Rxe1 {[%clk 0:01:33.2]} 25... Be6 {[%clk 0:02:16.8]} 26. Bg5
{[%clk 0:01:28.2]} 26... Rf8 {[%clk 0:02:12.2]} 27. Nf2 {[%clk 0:01:22.7]} 27...
c4 {[%clk 0:02:08.9]} 28. d4 {[%clk 0:01:21.4]} 28... Bd5 {[%clk 0:02:09.3]} 29.
Re7 {[%clk 0:01:13.4]} 29... Qf5 {[%clk 0:02:07.3]} 30. Rxa7 {[%clk 0:01:08.4]}
30... c5 {[%clk 0:02:01]} 31. Ng4 {[%clk 0:01:04.6]} 31... cxd4 {[%clk
0:01:55.3]} 32. Nh6+ {[%clk 0:01:02.5]} 32... Bxh6 {[%clk 0:01:53.6]} 33. Bxh6
{[%clk 0:01:02]} 33... Rf7 {[%clk 0:01:46.3]} 34. Rxf7 {[%clk 0:00:51.3]} 34...
Kxf7 {[%clk 0:01:42.3]} 35. cxd4 {[%clk 0:00:49.3]} 35... Ke6 {[%clk 0:01:40.5]}
36. Bf4 {[%clk 0:00:41.1]} 36... Qe4 {[%clk 0:01:37.1]} 37. Qe3 {[%clk
0:00:38.1]} 37... Qxe3+ {[%clk 0:01:32.2]} 38. Bxe3 {[%clk 0:00:37.5]} 38... Be4
{[%clk 0:01:31.8]} 39. Bf4 {[%clk 0:00:36]} 39... d5 {[%clk 0:01:31.7]} 40. Kf2
{[%clk 0:00:35.6]} 40... Kd7 {[%clk 0:01:31]} 41. Ke3 {[%clk 0:00:35]} 41... Kc6
{[%clk 0:01:31.9]} 42. Kd2 {[%clk 0:00:34.9]} 42... Bxg2 {[%clk 0:01:32.1]} 43.
h4 {[%clk 0:00:33.8]} 43... Kd7 {[%clk 0:01:32]} 44. Kc3 {[%clk 0:00:33.1]}
44... Ke6 {[%clk 0:01:32.6]} 45. Kd2 {[%clk 0:00:30]} 45... Kf5 {[%clk 0:01:33]}
46. Ke3 {[%clk 0:00:29.7]} 46... Kg4 {[%clk 0:01:33.4]} 47. Bg5 {[%clk
0:00:29.6]} 47... h6 {[%clk 0:01:33.6]} 48. Bxh6 {[%clk 0:00:29]} 48... Kxh4
{[%clk 0:01:34.1]} 49. Kf4 {[%clk 0:00:29.5]} 49... Kh5 {[%clk 0:01:34.3]} 50.
Bg5 {[%clk 0:00:28.7]} 50... Be4 {[%clk 0:01:35.2]} 51. Bf6 {[%clk 0:00:27.9]}
51... Kh6 {[%clk 0:01:35.3]} 52. Bg5+ {[%clk 0:00:23.3]} 52... Kg7 {[%clk
0:01:35.4]} 53. Ke5 {[%clk 0:00:23]} 53... Kf7 {[%clk 0:01:35.8]} 54. Kd6 {[%clk
0:00:22.7]} 54... Bf5 {[%clk 0:01:36]} 55. Kxd5 {[%clk 0:00:21.4]} 55... Be6+
{[%clk 0:01:36.6]} 56. Ke5 {[%clk 0:00:20.9]} 56... Bf5 {[%clk 0:01:35.2]} 57.
d5 {[%clk 0:00:20.4]} 57... Ke8 {[%clk 0:01:35.6]} 58. Kd6 {[%clk 0:00:19.8]}
58... Bd7 {[%clk 0:01:33.4]} 59. Kc5 {[%clk 0:00:19.2]} 59... c3 {[%clk
0:01:27.5]} 60. bxc3 {[%clk 0:00:18.6]} 60... Bc8 {[%clk 0:01:27.6]} 61. c4
{[%clk 0:00:18.4]} 61... Kd7 {[%clk 0:01:28.5]} 62. Kb6 {[%clk 0:00:17.6]} 62...
Kd6 {[%clk 0:01:26.5]} 63. Bf4+ {[%clk 0:00:16.9]} 63... Ke7 {[%clk 0:01:27]}
64. Kc7 {[%clk 0:00:15.8]} 64... Ba6 {[%clk 0:01:26.4]} 65. c5 {[%clk
0:00:15.7]} 65... Bb5 {[%clk 0:01:27.1]} 66. c6 {[%clk 0:00:15]} 66... g5 {[%clk
0:01:24.9]} 67. Bxg5+ {[%clk 0:00:13]} 67... Kf7 {[%clk 0:01:25.8]} 68. d6
{[%clk 0:00:12.7]} 68... Bxc6 {[%clk 0:01:25.9]} 69. Kxc6 {[%clk 0:00:12.2]}
69... Kg7 {[%clk 0:01:26.7]} 70. d7 {[%clk 0:00:11.8]} 70... Kh7 {[%clk
0:01:27.6]} 71. d8=Q {[%clk 0:00:12.5]} 71... Kg6 {[%clk 0:01:28]} 72. Qf6+
{[%clk 0:00:12]} 72... Kh7 {[%clk 0:01:28.5]} 73. Qf7+ {[%clk 0:00:11.6]} 73...
Kh8 {[%clk 0:01:28.8]} 74. Bf6# {[%clk 0:00:11.8]} 1-0

[Event "*** Titled Tuesday Blitz"]
[Site "Chess.com"]
[Date "2020.12.29"]
[Round "7"]
[White "Nadtkins"]
[Black "AniJak"]
[Result "1-0"]
[WhiteElo "2521"]
[BlackElo "2345"]
[TimeControl "180+1"]
[EndTime "11:17:25 PST"]
[Termination "Nadtkins won on time"]

1. c4 {[%clk 0:03:00.9]} 1... e5 {[%clk 0:02:59.4]} 2. Nc3 {[%clk 0:03:00.6]}
2... Nc6 {[%clk 0:02:59.3]} 3. Nf3 {[%clk 0:03:01.2]} 3... g6 {[%clk 0:02:59.4]}
4. d4 {[%clk 0:02:58.8]} 4... exd4 {[%clk 0:02:59.1]} 5. Nd5 {[%clk 0:02:59]}
5... h6 {[%clk 0:02:44.2]} 6. Nxd4 {[%clk 0:02:53.7]} 6... Bg7 {[%clk
0:02:43.3]} 7. Nb5 {[%clk 0:02:52.9]} 7... Be5 {[%clk 0:02:28.3]} 8. Bf4 {[%clk
0:02:20.9]} 8... Bxf4 {[%clk 0:02:26.9]} 9. Nxf4 {[%clk 0:02:21.8]} 9... a6
{[%clk 0:02:24.2]} 10. Nc3 {[%clk 0:02:18.4]} 10... Nge7 {[%clk 0:02:18.7]} 11.
e3 {[%clk 0:02:14.5]} 11... d6 {[%clk 0:02:18.8]} 12. Bd3 {[%clk 0:02:03.4]}
12... Ne5 {[%clk 0:02:17.9]} 13. Be2 {[%clk 0:01:55]} 13... O-O {[%clk
0:02:15.2]} 14. O-O {[%clk 0:01:54.6]} 14... Be6 {[%clk 0:02:10.8]} 15. Ncd5
{[%clk 0:01:50.2]} 15... Kg7 {[%clk 0:02:03.7]} 16. Rc1 {[%clk 0:01:46]} 16...
c6 {[%clk 0:01:40.8]} 17. Nxe6+ {[%clk 0:01:37.8]} 17... fxe6 {[%clk 0:01:41.7]}
18. Nf4 {[%clk 0:01:38.7]} 18... Qd7 {[%clk 0:01:41.8]} 19. Qc2 {[%clk 0:01:33]}
19... b5 {[%clk 0:01:24]} 20. Rfd1 {[%clk 0:01:27.5]} 20... bxc4 {[%clk
0:01:19.9]} 21. Bxc4 {[%clk 0:01:27.3]} 21... Rf6 {[%clk 0:01:04.9]} 22. Qb3
{[%clk 0:01:18.6]} 22... Nd5 {[%clk 0:01:01]} 23. Bxd5 {[%clk 0:01:06.3]} 23...
exd5 {[%clk 0:00:52.8]} 24. Qa4 {[%clk 0:01:04.1]} 24... Qg4 {[%clk 0:00:24.4]}
25. Qb3 {[%clk 0:00:41.5]} 25... Raf8 {[%clk 0:00:18.3]} 26. h3 {[%clk
0:00:36.2]} 26... Qg5 {[%clk 0:00:14.6]} 27. Kh2 {[%clk 0:00:32.6]} 27... Rxf4
{[%clk 0:00:14.5]} 28. exf4 {[%clk 0:00:32.5]} 28... Qxf4+ {[%clk 0:00:14.7]}
29. Qg3 {[%clk 0:00:31.8]} 29... Qxf2 {[%clk 0:00:12.4]} 30. Qxf2 {[%clk
0:00:31.1]} 30... Rxf2 {[%clk 0:00:13.3]} 31. Rb1 {[%clk 0:00:28.5]} 31... Re2
{[%clk 0:00:12.9]} 32. b4 {[%clk 0:00:28.1]} 32... Nc4 {[%clk 0:00:10.7]} 33.
Kg3 {[%clk 0:00:27.1]} 33... Rxa2 {[%clk 0:00:10.5]} 34. Re1 {[%clk 0:00:26.3]}
34... Ra3+ {[%clk 0:00:10.3]} 35. Kh2 {[%clk 0:00:26.1]} 35... Kf6 {[%clk
0:00:09.3]} 36. Rf1+ {[%clk 0:00:26.2]} 36... Kg7 {[%clk 0:00:09.5]} 37. Rbe1
{[%clk 0:00:26.1]} 37... Ne5 {[%clk 0:00:09.7]} 38. Ra1 {[%clk 0:00:24.2]} 38...
Rb3 {[%clk 0:00:09.3]} 39. Rxa6 {[%clk 0:00:23.9]} 39... h5 {[%clk 0:00:09.2]}
40. Ra4 {[%clk 0:00:22.3]} 40... Rb2 {[%clk 0:00:08.4]} 41. h4 {[%clk
0:00:20.8]} 41... d4 {[%clk 0:00:08.4]} 42. b5 {[%clk 0:00:20.3]} 42... c5
{[%clk 0:00:07.8]} 43. Ra7+ {[%clk 0:00:19.9]} 43... Kh6 {[%clk 0:00:07.5]} 44.
Rf8 {[%clk 0:00:17]} 44... g5 {[%clk 0:00:04.7]} 45. Rf6+ {[%clk 0:00:15.9]}
45... Ng6 {[%clk 0:00:03.5]} 46. Rxd6 {[%clk 0:00:15.4]} 46... d3 {[%clk
0:00:01.3]} 47. Rxd3 {[%clk 0:00:14.3]} 1-0

[Event "*** Titled Tuesday Blitz"]
[Site "Chess.com"]
[Date "2020.12.29"]
[Round "7"]
[White "Chernov_Alexander_A"]
[Black "frenchpin"]
[Result "0-1"]
[WhiteElo "2313"]
[BlackElo "2465"]
[TimeControl "180+1"]
[EndTime "11:17:25 PST"]
[Termination "frenchpin won on time"]

1. d4 {[%clk 0:02:57.2]} 1... e6 {[%clk 0:03:00.9]} 2. Nf3 {[%clk 0:02:56.1]}
2... Nf6 {[%clk 0:03:01.4]} 3. c4 {[%clk 0:02:55.9]} 3... d5 {[%clk 0:03:02]} 4.
Nc3 {[%clk 0:02:55.6]} 4... dxc4 {[%clk 0:03:02.5]} 5. e3 {[%clk 0:02:48.6]}
5... a6 {[%clk 0:02:54.9]} 6. Bxc4 {[%clk 0:02:48.1]} 6... b5 {[%clk 0:02:55.2]}
7. Bd3 {[%clk 0:02:48.2]} 7... Bb7 {[%clk 0:02:51.7]} 8. O-O {[%clk 0:02:47.2]}
8... Nbd7 {[%clk 0:02:52.1]} 9. Qe2 {[%clk 0:02:47]} 9... c5 {[%clk 0:02:51.5]}
10. Rd1 {[%clk 0:02:46.2]} 10... Qb6 {[%clk 0:02:49.8]} 11. a4 {[%clk
0:02:43.1]} 11... c4 {[%clk 0:02:44.7]} 12. Bb1 {[%clk 0:02:38.4]} 12... b4
{[%clk 0:02:44.9]} 13. a5 {[%clk 0:02:36.7]} 13... Qc7 {[%clk 0:02:34.7]} 14.
Na4 {[%clk 0:02:33.3]} 14... Bd6 {[%clk 0:02:33.3]} 15. Nb6 {[%clk 0:02:11.7]}
15... Nxb6 {[%clk 0:02:13.8]} 16. axb6 {[%clk 0:02:10.3]} 16... Qc6 {[%clk
0:02:01.8]} 17. Bd2 {[%clk 0:01:48.1]} 17... O-O {[%clk 0:01:53.4]} 18. Rc1
{[%clk 0:01:45.4]} 18... Rfc8 {[%clk 0:01:51.4]} 19. Be1 {[%clk 0:01:28.3]}
19... a5 {[%clk 0:01:45.6]} 20. Qf1 {[%clk 0:01:14.7]} 20... a4 {[%clk
0:01:27.5]} 21. Bd3 {[%clk 0:01:11.3]} 21... Ba6 {[%clk 0:01:21.3]} 22. Be2
{[%clk 0:01:10]} 22... Bb5 {[%clk 0:00:33.8]} 23. Nd2 {[%clk 0:01:06.6]} 23...
Qxb6 {[%clk 0:00:33.8]} 24. Nxc4 {[%clk 0:01:05]} 24... Qa6 {[%clk 0:00:31.9]}
25. b3 {[%clk 0:00:53.3]} 25... a3 {[%clk 0:00:30.5]} 26. Ra2 {[%clk 0:00:52.2]}
26... Be7 {[%clk 0:00:26.6]} 27. h3 {[%clk 0:00:48.1]} 27... h6 {[%clk
0:00:23.3]} 28. f3 {[%clk 0:00:46.7]} 28... Rc7 {[%clk 0:00:22.3]} 29. e4 {[%clk
0:00:43.9]} 29... Rac8 {[%clk 0:00:20.5]} 30. Bf2 {[%clk 0:00:39.6]} 30... Nh5
{[%clk 0:00:17.5]} 31. g3 {[%clk 0:00:34.6]} 31... Nf6 {[%clk 0:00:13.6]} 32.
Kg2 {[%clk 0:00:34]} 32... Nd7 {[%clk 0:00:13.4]} 33. h4 {[%clk 0:00:23.6]}
33... Kh7 {[%clk 0:00:10.3]} 34. Bd3 {[%clk 0:00:22.1]} 34... Kg8 {[%clk
0:00:10]} 35. h5 {[%clk 0:00:20.3]} 35... Nb6 {[%clk 0:00:10.1]} 36. Rac2 {[%clk
0:00:17.6]} 36... Nxc4 {[%clk 0:00:08.5]} 37. Bxc4 {[%clk 0:00:15.8]} 37... Bxc4
{[%clk 0:00:07.3]} 38. Rxc4 {[%clk 0:00:15.1]} 38... Rxc4 {[%clk 0:00:07.2]} 39.
Rxc4 {[%clk 0:00:14.8]} 39... Rxc4 {[%clk 0:00:07.3]} 40. bxc4 {[%clk
0:00:14.7]} 40... b3 {[%clk 0:00:07.3]} 41. d5 {[%clk 0:00:03.2]} 41... b2
{[%clk 0:00:06.5]} 42. Qd3 {[%clk 0:00:02.5]} 42... Qb7 {[%clk 0:00:06.1]} 0-1